bitfinex-derivatives/quotes_BNBF0:USTF0_20250130
["timestamp","ask_amount","ask_price","bid_price","bid_amount"]
[1738223567522,0.27170177,676.76,675.7,0.25880956]
[1738223567723,0.27170177,676.75,675.7,0.25880956]
[1738223568018,0.27170177,676.74,675.7,0.25880956]
[1738223568216,0.27170177,676.73,675.7,0.25880956]
[1738223568423,1.1007863,676.64,675.72,1.1061664]
[1738223568617,1.1007863,676.64,675.73,0.25880956]
[1738223569225,1.1007863,676.64,675.72,1.1061664]
[1738223571130,1.1007863,676.64,675.73,0.25880957]
[1738223572231,1.1007863,676.66,675.73,0.25880957]
[1738223572422,1.1007863,676.66,675.74,0.25880957]
[1738223572624,1.1007863,676.66,675.75,0.25880957]
[1738223572822,1.1007863,676.66,675.69,2.64980297]
[1738223573129,1.1007863,676.66,675.7,0.25880887]
[1738223574329,1.1007863,676.66,675.69,2.64976873]
[1738223574525,1.1007863,676.66,675.7,0.25880822]
[1738223574829,0.5676972,677.05,675.73,1.1061664]
[1738223574830,1.1007863,676.64,675.73,1.1061664]
[1738223575031,1.1007863,676.64,675.74,0.25880822]
[1738223575932,1.1007863,676.64,675.73,1.1061664]
[1738223576234,1.1007863,676.64,675.74,0.25880864]
[1738223578337,1.1007863,676.63,675.74,1.36497504]
[1738223578535,1.1007863,676.63,675.75,0.25880864]
[1738223579233,1.1007863,676.63,675.74,1.1061664]
[1738223579434,1.1007863,676.63,675.75,0.25880948]
[1738223580240,1.1007863,676.63,675.76,0.25880961]
[1738223580440,1.1007863,676.63,675.75,0.25880961]
[1738223580836,1.1007863,676.63,675.76,0.25881407]
[1738223581036,1.1007863,676.63,675.75,0.25881407]
[1738223581241,0.7635805,677.01,675.69,1.54360233]
[1738223581242,1.1007863,676.6,675.77,1.1061664]
[1738223581538,1.1007863,676.6,675.78,0.25881179]
[1738223583940,1.1007863,676.58,675.78,1.36497819]
[1738223584135,1.1007863,676.58,675.78,1.1061664]
[1738223587143,1.1007863,676.58,675.73,1.54357951]
[1738223587144,1.1007863,676.57,675.8,1.1061664]
[1738223590648,1.1007863,676.56,675.82,1.1061664]
[1738223594154,1.1007863,676.57,675.83,1.1061664]
[1738223597057,1.1007863,676.59,675.8,1.1061664]
[1738223599658,1.1007863,676.59,675.81,1.1061664]
[1738223600457,1.1007863,676.59,675.82,0.25878378]
[1738223601358,1.1007863,676.59,675.81,1.1061664]
[1738223602960,1.1007863,676.63,675.84,1.1061664]
[1738223605761,1.1007863,676.58,675.81,1.1061664]
[1738223612568,1.1007863,676.59,675.82,1.1061664]
[1738223616071,1.1007863,676.74,675.8,1.54349963]
[1738223618773,1.1007863,676.77,675.8,1.54349963]
[1738223622076,1.1007863,676.76,675.8,1.54349963]
[1738223625675,1.1007863,676.77,675.8,1.54349963]
[1738223628279,1.1007863,676.74,675.8,1.54349963]
[1738223633376,1.1007863,676.74,675.81,0.2587867]
[1738223634477,0.56805588,677.24,675.81,0.2587867]
[1738223634478,1.1007863,676.67,675.81,0.2587867]
[1738223635182,1.1007863,676.67,675.8,2.64966603]
[1738223637477,1.1007863,676.7,675.8,1.54349963]
[1738223641282,1.1007863,676.7,675.8,2.64966603]
[1738223644091,1.1007863,676.66,675.8,1.54349963]
[1738223645089,1.1007863,676.66,675.81,0.2587964]
[1738223646989,0.56809303,677.12,675.81,0.2587964]
[1738223646990,1.1007863,676.62,675.82,1.1061664]
[1738223648593,1.1007863,676.62,675.83,0.25879298]
[1738223648794,1.1007863,676.62,675.82,1.1061664]
[1738223649594,1.1007863,676.61,675.83,1.1061664]
[1738223655302,1.1007863,676.61,675.84,1.1061664]
[1738223658099,1.1007863,676.62,675.85,1.1061664]
[1738223661100,1.1007863,676.64,675.83,1.1061664]
[1738223664605,1.1007863,676.62,675.81,1.1061664]
[1738223667510,1.1007863,676.62,675.82,1.1061664]
[1738223668104,1.1007863,676.62,675.83,0.25879397]
[1738223668712,1.1007863,676.62,675.82,1.1061664]
[1738223669714,1.1007863,676.62,675.83,0.25879349]
[1738223670215,1.1007863,676.6,675.84,1.1061664]
[1738223673008,1.1007863,676.61,675.85,1.1061664]
[1738223676818,1.1007863,676.6,675.86,1.1061664]
[1738223680018,1.1007863,676.66,675.82,1.54348252]
[1738223684227,1.1007863,676.66,675.83,0.25879241]
[1738223685229,1.1007863,676.66,675.82,1.54348252]
[1738223687525,1.1007863,676.59,675.86,1.1061664]
[1738223689925,1.1007863,676.63,675.82,1.54348252]
[1738223696834,1.1007863,676.62,675.82,1.54348252]
[1738223699738,1.1007863,676.59,675.82,1.54348252]
[1738223702640,1.1007863,676.6,675.82,1.54348252]
[1738223711655,1.1007863,676.59,675.82,1.54348252]
[1738223714655,1.1007863,676.6,675.82,1.54348252]
[1738223717858,0.56843935,676.97,675.82,1.54348252]
[1738223717859,1.1007863,676.58,675.82,1.54348252]
[1738223720660,1.1007863,676.57,675.82,1.54348252]
[1738223723560,1.1007863,676.58,675.84,1.1061664]
[1738223728060,1.1007863,676.58,675.82,1.54348252]
[1738223728061,1.1007863,676.58,675.83,1.1061664]
[1738223731767,1.1007863,676.65,675.82,1.54348252]
[1738223735070,1.1007863,676.67,675.82,1.54348252]
[1738223739077,1.1007863,676.66,675.82,1.54348252]
[1738223742275,1.1007863,677.0,675.82,1.54348252]
[1738223743473,0.27163365,676.99,675.82,1.54348252]
[1738223744774,0.27163365,677.01,675.82,1.54348252]
[1738223744979,0.27163365,677.0,675.82,1.54348252]
[1738223745183,0.27163365,677.01,675.82,1.54348252]
[1738223745378,0.27163365,677.0,675.82,1.54348252]
[1738223745679,0.27163365,676.99,675.82,1.54348252]
[1738223745879,0.27163365,676.98,675.82,1.54348252]
[1738223746179,0.27163365,676.97,675.82,1.54348252]
[1738223746375,0.27163365,677.01,676.97,0.00739417]
[1738223746580,1.1007863,677.02,675.82,1.54348252]
[1738223746780,1.1007863,677.02,675.83,0.2959324]
[1738223747079,1.1007863,676.99,675.83,0.2959324]
[1738223749985,1.1007863,677.44,675.83,0.2959324]
[1738223750183,0.56682469,677.43,675.83,0.2959324]
[1738223750482,0.29523781,677.42,675.83,0.2959324]
[1738223751584,0.27159118,677.41,675.83,0.28381882]
[1738223751778,0.29524653,677.4,675.83,0.28381882]
[1738223751982,0.27159118,677.39,675.83,0.28381882]
[1738223752184,0.29525524,677.38,675.83,0.28381882]
[1738223753279,0.27159409,677.37,675.83,0.28381882]
[1738223753485,0.29525524,677.38,675.83,0.28381882]
[1738223753681,0.29526396,677.36,675.83,0.28381882]
[1738223754586,0.27160693,677.35,675.83,0.28381882]
[1738223754786,0.29527268,677.34,675.83,0.28381882]
[1738223754981,0.27160693,677.33,675.83,0.28381882]
[1738223755181,0.2952814,677.32,675.83,0.28381882]
[1738223756488,0.2716115,677.31,675.83,0.28381882]
[1738223756886,0.2716115,677.31,675.84,0.25908911]
[1738223757095,0.2716115,677.31,675.83,0.28381882]
[1738223757689,0.2952814,677.32,675.83,0.28381882]
[1738223757888,0.27160095,677.31,675.84,0.2591297]
[1738223759287,0.2952814,677.32,675.83,0.28381882]
[1738223759487,0.2715989,677.31,675.84,0.25912294]
[1738223759886,1.1007863,677.19,675.84,0.25912294]
[1738223760085,0.2715989,677.18,675.84,0.25912294]
[1738223760790,1.1007863,677.19,675.85,0.29592365]
[1738223762690,1.09413928,677.19,675.85,0.29592365]
[1738223763292,0.2952814,677.32,675.85,0.29592365]
[1738223768994,0.27158454,677.31,675.85,0.29592365]
[1738223769393,0.27158454,677.31,675.86,0.25880811]
[1738223769597,0.27158454,677.31,675.87,0.29591489]
[1738223769791,0.27158454,677.31,675.88,0.25880811]
[1738223770191,0.27158454,677.31,675.89,0.29590613]
[1738223770394,0.27158454,677.31,675.9,0.25880811]
[1738223770889,0.27158454,677.31,675.91,0.29589738]
[1738223772297,0.27158388,677.3,675.91,0.29589738]
[1738223772496,0.27158388,677.31,675.91,0.29589738]
[1738223772693,0.27158388,677.3,675.91,0.29589738]
[1738223772894,0.27158388,677.31,675.91,0.29589738]
[1738223773092,0.27158388,677.3,675.91,0.29589738]
[1738223773297,0.27158388,677.31,675.91,0.29589738]
[1738223773598,0.27158388,677.3,675.92,0.2588054]
[1738223773795,0.27158388,677.31,675.93,0.29588862]
[1738223774299,0.27158388,677.31,675.94,0.25879416]
[1738223774494,0.27158388,677.31,675.95,0.29587987]
[1738223775901,0.27158516,677.3,675.95,0.29587987]
[1738223776198,0.27158516,677.29,675.95,0.29587987]
[1738223776497,0.27158516,677.28,675.95,0.29587987]
[1738223776798,0.27158516,677.27,675.96,0.25880088]
[1738223776997,0.27158516,677.31,675.97,0.29587111]
[1738223777199,0.27158516,677.3,675.98,0.25880088]
[1738223777398,0.27158516,677.31,675.98,0.25880088]
[1738223777693,0.27158516,677.3,675.99,0.29586236]
[1738223777998,0.27158516,677.29,676.0,0.25879547]
[1738223778201,1.1007863,677.29,676.0,0.25879547]
[1738223778498,0.27158516,677.28,676.0,0.25879547]
[1738223780299,0.27158516,677.28,675.99,0.29586236]
[1738223780797,1.1007863,677.29,675.99,0.29586236]
[1738223781001,0.27157765,677.28,675.99,0.29586236]
[1738223781295,1.1007863,677.15,675.99,0.29586236]
[1738223781494,1.1007863,677.15,676.0,1.1061664]
[1738223785399,0.2952814,677.32,675.99,0.29586236]
[1738223785600,0.27157042,677.31,675.99,0.29586236]
[1738223792205,0.2952814,677.32,675.99,0.29586236]
[1738223792404,0.27157236,677.31,675.99,0.29586236]
[1738223793203,0.76536145,677.3,675.99,1.40202876]
[1738223793404,1.1007863,677.25,676.0,0.25875278]
[1738223793705,0.27157236,677.24,676.0,0.25875278]
[1738223795610,0.27157274,677.23,676.01,0.25878127]
[1738223795811,0.27157274,677.24,676.0,0.25878127]
[1738223796111,0.27157274,677.23,676.01,0.25878127]
[1738223796310,0.27157274,677.24,676.0,0.25878127]
[1738223796512,0.27157274,677.23,676.01,0.25878127]
[1738223796712,0.27157274,677.24,676.0,0.25878127]
[1738223797011,0.27157274,677.23,676.01,0.25878127]
[1738223797213,0.27157274,677.24,676.0,0.25878127]
[1738223797412,0.27157274,677.23,676.01,0.25878127]
[1738223797607,0.27157274,677.22,676.02,0.25878127]
[1738223797812,0.27157274,677.24,676.0,0.25878127]
[1738223798013,0.27157274,677.23,676.01,0.25878127]
[1738223798214,0.27157274,677.22,676.02,0.25878127]
[1738223798409,0.27157274,677.24,676.0,0.25878127]
[1738223798614,0.27157274,677.23,676.01,0.25878127]
[1738223798814,1.1007863,677.25,675.99,1.40202876]
[1738223799011,0.27156608,677.24,676.0,0.25878357]
[1738223799408,0.27156608,677.24,676.0,0.55464155]
[1738223799614,0.27156608,677.24,676.01,0.25878357]
[1738223800810,1.1007863,677.12,676.11,1.1061664]
[1738223801012,0.27156608,677.11,676.11,1.1061664]
[1738223802117,0.27156608,677.11,676.12,0.25876942]
[1738223802712,0.27156608,677.11,676.11,1.1061664]
[1738223802915,0.27156608,677.11,676.12,0.2587701]
[1738223804119,0.27156608,677.16,676.1,0.2587701]
[1738223804319,0.27156608,677.15,676.09,1.1061664]
[1738223804520,0.27156608,677.16,676.09,1.1061664]
[1738223804720,0.27156608,677.15,676.09,1.1061664]
[1738223804914,0.27156608,677.16,676.09,1.1061664]
[1738223805117,1.1007863,677.17,676.09,1.1061664]
[1738223805118,0.27156608,677.15,676.09,1.1061664]
[1738223805325,1.1007863,677.17,676.09,1.1061664]
[1738223805616,0.27156591,677.16,676.0,0.29585798]
[1738223805821,0.27156591,677.15,676.01,0.2587674]
[1738223806120,0.27156591,677.14,676.01,0.2587674]
[1738223806320,0.27156591,677.31,676.01,0.2587674]
[1738223806515,0.27156591,677.3,676.01,0.2587674]
[1738223806718,0.27156591,677.29,676.01,0.2587674]
[1738223806919,0.27156591,677.31,676.01,0.2587674]
[1738223807114,0.27156591,677.3,676.01,0.2587674]
[1738223807319,0.27156591,677.29,676.01,0.2587674]
[1738223807615,0.27156591,677.28,676.01,0.2587674]
[1738223807817,0.27156591,677.31,676.01,0.2587674]
[1738223808120,0.27156591,677.3,676.01,0.2587674]
[1738223808321,0.27156591,677.31,676.01,0.2587674]
[1738223808516,0.27156591,677.3,676.01,0.2587674]
[1738223808716,0.2952814,677.32,676.0,0.29585798]
[1738223808919,0.27156274,677.31,676.02,0.29584923]
[1738223809121,0.27156274,677.31,676.03,0.2587567]
[1738223809316,0.27156274,677.31,676.03,0.55460155]
[1738223809515,0.27156274,677.31,676.04,0.2587567]
[1738223812116,0.27156531,677.3,676.05,0.55459838]
[1738223812318,0.2952814,677.32,676.05,0.55459838]
[1738223812319,0.27156531,677.29,676.06,0.25876228]
[1738223812520,0.27156531,677.31,676.06,0.25876228]
[1738223812721,0.27156531,677.3,676.06,0.25876228]
[1738223812921,0.27156531,677.29,676.06,0.25876228]
[1738223813121,0.27156531,677.28,676.06,0.25876228]
[1738223813321,0.27156531,677.27,676.06,0.25876228]
[1738223813524,0.27156531,677.26,676.06,0.25876228]
[1738223813722,0.2952814,677.32,676.05,0.2958361]
[1738223813723,0.27155636,677.25,676.07,0.25873451]
[1738223813921,0.27155636,677.31,676.06,0.25873451]
[1738223814127,0.27155636,677.3,676.07,0.25873451]
[1738223814422,0.27155636,677.29,676.08,0.25873451]
[1738223814725,0.27155636,677.28,676.09,0.25873451]
[1738223814924,0.27155636,677.27,676.1,0.25873451]
[1738223815226,0.27155932,677.26,676.11,0.2587489]
[1738223815424,0.27155932,677.25,676.12,0.2587489]
[1738223815627,0.27155932,677.24,676.13,0.2587489]
[1738223815828,0.27155932,677.23,676.14,0.2587489]
[1738223816028,0.27155932,677.31,676.05,0.2958361]
[1738223816230,0.27155932,677.3,676.06,0.25875131]
[1738223816528,0.27155932,677.29,676.06,0.25875131]
[1738223816723,0.27155932,677.31,676.06,0.25875131]
[1738223816928,0.27155932,677.3,676.06,0.25875131]
[1738223817224,0.27155932,677.29,676.06,0.25875131]
[1738223817428,0.27155932,677.28,676.06,0.25875131]
[1738223817629,0.27155932,677.27,676.06,0.25875131]
[1738223817929,0.2715582,677.26,676.07,0.25874438]
[1738223818124,0.2715582,677.31,676.06,0.25874438]
[1738223818329,0.2715582,677.3,676.07,0.25874438]
[1738223818528,0.2715582,677.29,676.08,0.25874438]
[1738223818825,0.2715582,677.29,676.05,0.2958361]
[1738223818826,0.2715582,677.28,676.09,0.25874438]
[1738223819029,0.2715582,677.31,676.06,0.25874438]
[1738223819227,0.2715582,677.3,676.07,0.25874438]
[1738223819427,0.2715582,677.29,676.08,0.25874438]
[1738223819626,0.2715582,677.28,676.09,0.25874438]
[1738223819827,0.2715582,677.27,676.1,0.25874438]
[1738223820024,0.2715582,677.31,676.11,0.25874438]
[1738223820229,0.2715582,677.3,676.12,0.25874438]
[1738223820427,0.2952814,677.32,676.05,0.2958361]
[1738223820428,0.2715582,677.31,676.06,0.25874438]
[1738223820629,0.2715582,677.3,676.07,0.25874438]
[1738223820825,0.2715582,677.29,676.08,0.25874438]
[1738223821130,0.2715582,677.28,676.09,0.25874438]
[1738223821326,0.2952814,677.32,676.05,0.2958361]
[1738223821327,0.27156517,677.27,676.1,0.25876369]
[1738223821526,0.27156517,677.26,676.11,0.25876369]
[1738223821826,0.27156517,677.25,676.05,0.2958361]
[1738223822030,0.27156517,677.24,676.06,0.25875175]
[1738223822226,0.27156517,677.31,676.06,0.25875175]
[1738223822425,0.27156517,677.3,676.06,0.25875175]
[1738223822724,0.27156615,677.29,676.07,0.25875836]
[1738223822929,0.27156615,677.28,676.08,0.25875836]
[1738223823132,0.27156615,677.27,676.09,0.25875836]
[1738223823328,0.27156615,677.31,676.06,0.25875836]
[1738223823526,0.27156615,677.3,676.07,0.25875836]
[1738223823729,0.2952814,677.32,676.05,0.2958361]
[1738223823730,0.27156615,677.29,676.08,0.25875836]
[1738223823931,0.27156535,677.28,676.09,0.25875448]
[1738223824234,0.27156535,677.27,676.05,0.2958361]
[1738223824428,0.27156535,677.26,676.06,0.25875611]
[1738223824632,0.27156535,677.25,676.06,0.25875611]
[1738223824927,0.27156652,677.24,676.07,0.25875483]
[1738223825128,0.27156652,677.23,676.08,0.25875483]
[1738223825328,0.27156652,677.22,676.05,0.2958361]
[1738223825629,0.27156652,677.21,676.06,0.25873959]
[1738223825832,0.27156652,677.2,676.06,0.25873959]
[1738223826133,0.27156652,677.19,676.06,0.25873959]
[1738223826333,0.27156652,677.31,676.06,0.25873959]
[1738223826530,0.27156652,677.3,676.06,0.25873959]
[1738223826730,0.27156652,677.31,676.06,0.25873959]
[1738223826935,0.27156652,677.3,676.06,0.25873959]
[1738223827132,0.27156652,677.29,676.06,0.25873959]
[1738223827334,0.27156652,677.31,676.06,0.25873959]
[1738223827631,0.27156652,677.3,676.06,0.25873959]
[1738223827835,0.27156652,677.29,676.06,0.25873959]
[1738223828036,0.27156524,677.28,676.07,0.25874733]
[1738223828333,0.2952814,677.32,676.05,0.2958361]
[1738223828536,0.27156495,677.31,676.06,0.25874311]
[1738223829836,0.27156495,677.31,676.05,0.2958361]
[1738223830938,0.27156495,677.31,676.06,0.25870262]
[1738223832443,1.1078288,677.15,676.11,1.10704644]
[1738223832636,0.27156495,677.14,676.11,1.10704644]
[1738223834943,0.27156387,677.13,676.11,1.10704644]
[1738223835242,0.27156387,677.12,676.11,1.10704644]
[1738223835436,0.27156387,677.11,676.11,1.10704644]
[1738223835635,0.27156387,677.1,676.11,1.10704644]
[1738223835839,0.27156387,677.13,676.11,1.10704644]
[1738223836041,0.27156387,677.12,676.11,1.10704644]
[1738223836341,0.27156387,677.11,676.11,1.10704644]
[1738223836543,0.27156387,677.13,676.11,1.10704644]
[1738223836737,0.27156387,677.12,676.11,1.10704644]
[1738223836941,0.27156387,677.11,676.11,1.10704644]
[1738223837143,0.27156387,677.13,676.11,1.10704644]
[1738223837442,0.27156387,677.12,676.11,1.10704644]
[1738223837642,0.27156387,677.11,676.11,1.10704644]
[1738223837843,0.27156387,677.13,676.1,1.10704644]
[1738223838045,0.27156387,677.12,676.1,1.10704644]
[1738223838242,0.27156414,677.11,676.1,1.10704644]
[1738223838439,0.27156414,677.1,676.1,1.10704644]
[1738223838639,0.27156414,677.09,676.1,1.10704644]
[1738223838837,0.27156414,677.08,676.1,1.10704644]
[1738223839141,1.1078288,677.17,676.1,1.10704644]
[1738223839443,0.27156141,677.16,676.1,1.10704644]
[1738223839746,0.27156141,677.16,676.11,0.25857879]
[1738223840345,0.27156266,677.15,676.1,1.10704644]
[1738223840545,0.27156266,677.16,676.1,1.10704644]
[1738223840741,0.27156266,677.15,676.1,1.10704644]
[1738223840946,1.1078288,677.12,676.14,1.10704644]
[1738223841146,0.27156266,677.11,676.14,1.10704644]
[1738223843547,1.1078288,677.12,676.14,1.10704644]
[1738223843949,1.1078288,677.18,676.09,1.10704644]
[1738223844143,0.27155582,677.17,676.09,1.10704644]
[1738223844343,0.27155582,677.17,676.09,2.64968511]
[1738223846748,0.27155582,677.17,676.09,1.54263867]
[1738223847051,0.27155582,677.16,676.09,1.54263867]
[1738223847251,0.27155582,677.15,676.09,1.54263867]
[1738223847454,0.27155582,677.26,676.09,1.54263867]
[1738223847751,0.27155442,677.25,676.09,1.54263867]
[1738223847951,0.27155442,677.24,676.09,1.54263867]
[1738223848153,0.2715558,677.23,676.09,1.54263867]
[1738223848352,0.2715558,677.26,676.09,1.54263867]
[1738223848651,0.2715558,677.25,676.09,1.54263867]
[1738223848852,0.2715558,677.24,676.09,1.54263867]
[1738223851453,0.2715594,677.23,676.09,1.54263867]
[1738223851661,0.2715594,677.22,676.09,1.54263867]
[1738223851954,0.2715594,677.21,676.09,1.54263867]
[1738223852149,0.2715594,677.25,676.09,1.54263867]
[1738223852355,0.2715594,677.24,676.09,1.54263867]
[1738223852556,0.2715594,677.23,676.09,1.54263867]
[1738223852755,0.2715594,677.25,676.09,1.54263867]
[1738223853056,0.27155708,677.24,676.09,1.54263867]
[1738223853357,1.1078288,677.26,676.09,1.54263867]
[1738223853558,1.1078288,677.26,676.1,0.29581422]
[1738223855259,0.2952814,677.32,676.1,0.29581422]
[1738223855459,0.27152381,677.31,676.1,0.29581422]
[1738223859462,0.2952814,677.32,676.1,0.29581422]
[1738223859760,0.271518,677.31,676.1,0.29581422]
[1738223861162,0.2952814,677.32,676.1,0.29581422]
[1738223861358,0.27151898,677.31,676.1,0.29581422]
[1738223861863,0.2952814,677.32,676.1,0.29581422]
[1738223864258,0.27151446,677.31,676.1,0.29581422]
[1738223864461,0.2952814,677.32,676.1,0.29581422]
[1738223864462,0.27151446,677.3,676.1,0.29581422]
[1738223864658,0.2952814,677.32,676.1,0.29581422]
[1738223864963,0.27151385,677.31,676.1,0.29581422]
[1738223871761,0.27151385,677.31,676.11,0.25816373]
[1738223871963,0.27151385,677.31,676.12,0.29580547]
[1738223872163,0.27151385,677.31,676.13,0.25816373]
[1738223873368,0.27151385,677.31,676.13,1.36521017]
[1738223873666,0.27151385,677.31,676.14,0.25816373]
[1738223874264,0.27151385,677.31,676.13,1.10704644]
[1738223876665,0.27151385,677.31,676.12,0.29580547]
[1738223877567,0.2952814,677.32,676.12,0.29580547]
[1738223877768,0.27152374,677.31,676.12,0.29580547]
[1738223880669,0.2952814,677.32,676.12,0.29580547]
[1738223880969,0.27153136,677.31,676.12,0.29580547]
[1738223883267,1.10638424,677.21,676.12,0.29580547]
[1738223886971,0.2952814,677.32,676.12,0.29580547]
[1738223886972,1.10638424,677.17,676.12,0.29580547]
[1738223888075,0.27153397,677.16,676.12,0.29580547]
[1738223888375,1.10638424,677.17,676.12,0.29580547]
[1738223891169,1.10638424,677.09,676.12,0.29580547]
[1738223893972,1.10638424,677.09,676.13,0.25778993]
[1738223894571,0.2952814,677.32,676.13,0.25778993]
[1738223894572,1.10638424,677.08,676.13,0.25778993]
[1738223895479,1.10638424,677.08,676.12,1.40285191]
[1738223897583,1.10638424,677.1,676.12,0.29580547]
[1738223898484,1.10638424,677.1,676.13,0.25782853]
[1738223898784,1.10638424,677.1,676.14,0.25782769]
[1738223898983,1.10638424,677.1,676.15,0.25782769]
[1738223899182,1.10638424,677.1,676.13,0.2578412]
[1738223900280,1.10638424,677.1,676.12,0.29580547]
[1738223900484,1.10638424,677.1,676.13,0.25779544]
[1738223900884,1.10638424,677.08,676.15,1.10704644]
[1738223903788,1.10638424,677.08,676.16,1.10704644]
[1738223905488,1.10638424,677.08,676.17,0.2578355]
[1738223905689,1.10638424,677.08,676.16,1.10704644]
[1738223906190,1.10638424,677.08,676.17,0.25783648]
[1738223906389,1.10638424,677.08,676.16,1.10704644]
[1738223906781,1.10638424,677.08,676.17,0.25784457]
[1738223907187,1.10638424,677.08,676.16,1.10704644]
[1738223907391,1.10638424,677.08,676.17,0.25783548]
[1738223907588,1.10638424,677.08,676.16,0.25783548]
[1738223907784,1.10638424,677.08,676.15,1.10704644]
[1738223908088,1.10638424,677.08,676.16,0.25785626]
[1738223910194,1.10638424,677.02,676.2,1.10704644]
[1738223916799,1.10638424,677.03,676.19,1.10704644]
[1738223921302,1.10638424,677.03,676.2,0.25777865]
[1738223921503,1.10638424,677.05,676.2,1.36482509]
[1738223921703,1.10638424,677.05,676.2,1.10704644]
[1738223924701,1.1078288,677.25,676.18,1.10704644]
[1738223924702,1.10638424,677.14,676.18,1.10704644]
[1738223929409,1.10638424,677.18,676.15,1.54267286]
[1738223932411,1.10638424,677.18,676.15,2.6497193]
[1738223932609,1.10638424,677.18,676.16,0.25773494]
[1738223933004,1.10638424,677.18,676.15,2.6497193]
[1738223935513,1.10638424,677.18,676.16,0.25776954]
[1738223939416,1.10638424,677.14,676.17,1.10704644]
[1738223941321,1.10638424,677.14,676.18,0.25775126]
[1738223941524,1.10638424,677.14,676.17,1.10704644]
[1738223942617,1.10638424,677.14,676.15,1.54267286]
[1738223942618,1.10638424,677.14,676.16,1.10704644]
[1738223942819,1.10638424,677.14,676.17,0.25774429]
[1738223945622,1.10638424,677.13,676.21,1.10704644]
[1738223949126,1.10638424,677.11,676.22,1.10704644]
[1738223952025,0.2952814,677.32,676.17,1.54250191]
[1738223956030,0.2952814,677.32,676.12,0.29580547]
[1738223956529,1.10638424,677.35,676.12,0.29580547]
[1738223958724,1.10638424,677.68,676.12,0.29580547]
[1738223958925,0.29512889,677.67,676.12,0.29580547]
[1738223969136,0.27144335,677.66,676.13,0.25701688]
[1738223969335,0.27144335,677.66,676.15,0.29579235]
[1738223969534,0.27144335,677.66,676.16,0.25701688]
[1738223969732,0.27144335,677.66,676.17,0.2957836]
[1738223969939,0.27144335,677.66,676.18,0.25701688]
[1738223970242,0.27144335,677.66,676.19,0.29577485]
[1738223970640,0.27144335,677.66,676.2,0.25701688]
[1738223970841,0.27144335,677.66,676.21,0.2957661]
[1738223971141,1.10638424,677.51,676.22,0.25701688]
[1738223971342,0.27144335,677.5,676.23,0.29575736]
[1738223971640,0.27144335,677.5,676.24,0.25701688]
[1738223971842,0.27144335,677.5,676.25,0.29574861]
[1738223972143,0.27144335,677.5,676.26,0.25710491]
[1738223972542,0.27144335,677.5,676.27,0.29573986]
[1738223973635,1.10638424,677.51,676.27,0.29573986]
[1738223973840,0.27144,677.5,676.27,0.29573986]
[1738223974837,0.27144,677.49,676.27,0.29573986]
[1738223975042,0.27144,677.51,676.28,0.25709276]
[1738223975242,0.27144,677.5,676.29,0.29573112]
[1738223975443,0.27144,677.49,676.29,0.29573112]
[1738223975643,0.27144,677.48,676.29,0.29573112]
[1738223975943,1.10638424,677.52,676.29,0.29573112]
[1738223976246,0.27142952,677.51,676.3,0.25709815]
[1738223976942,0.27142952,677.51,676.31,0.29572237]
[1738223977138,0.27142704,677.5,676.31,0.29572237]
[1738223977343,0.29512889,677.67,676.31,0.29572237]
[1738223977344,0.27142704,677.49,676.31,0.29572237]
[1738223977544,0.27142704,677.53,676.31,0.29572237]
[1738223977743,1.10638424,677.54,676.31,0.29572237]
[1738223978645,0.29512889,677.67,676.31,0.29572237]
[1738223978845,0.2714262,677.66,676.31,0.29572237]
[1738223983846,0.29512889,677.67,676.31,0.29572237]
[1738223984046,0.27142854,677.66,676.31,0.29572237]
[1738223985545,0.29512889,677.67,676.31,0.29572237]
[1738223985746,0.27143233,677.66,676.31,0.29572237]
[1738223987542,1.10425114,677.57,676.31,0.29572237]
[1738223988550,0.27143495,677.56,676.31,0.29572237]
[1738223990048,1.10425114,677.51,676.31,0.29572237]
[1738223991150,0.27142981,677.5,676.31,0.29572237]
[1738223992050,0.27142981,677.5,676.32,0.25713279]
[1738223992248,1.10425114,677.51,676.31,0.29572237]
[1738223992453,0.27143322,677.5,676.32,0.25713249]
[1738223992847,1.10425114,677.39,676.32,1.3541016]
[1738223993051,1.10425114,677.39,676.33,0.25713249]
[1738223993747,0.27143325,677.38,676.33,0.25713249]
[1738223995453,1.10425114,677.3,676.39,1.09696911]
[1738223995752,1.10425114,677.3,676.4,0.25713249]
[1738223996753,1.10425114,677.3,676.39,1.09696911]
[1738224000051,5.29803831,685.44,676.31,0.29572237]
[1738224000052,1.10425114,677.42,676.31,0.29572237]
[1738224001257,2.25451275,678.15,676.31,0.29572237]
[1738224001452,12.93779066,685.42,676.31,0.29572237]
[1738224001755,12.93779066,685.41,676.31,0.29572237]
[1738224001955,5.06261373,685.4,676.31,0.29572237]
[1738224002252,12.93779066,685.39,676.31,0.29572237]
[1738224002450,5.06261373,685.38,676.31,0.29572237]
[1738224002651,12.93779066,685.37,676.31,0.29572237]
[1738224002951,9.72585664,685.36,676.31,0.29572237]
[1738224003154,5.06261373,685.35,676.31,0.29572237]
[1738224003354,5.06261373,685.34,676.31,0.29572237]
[1738224003554,12.93779066,685.33,676.31,0.29572237]
[1738224003757,0.27142796,677.66,676.31,0.29572237]
[1738224006656,0.27142796,677.66,676.32,0.25719986]
[1738224007752,12.93779066,685.12,676.31,0.29572237]
[1738224007957,0.27141443,677.66,676.32,0.25720251]